[Event "44th Chess Olympiad Open 2022"]
[Site "Chennai"]
[Date "2022.08.08"]
[Round "10.23"]
[White "Henderson de La Fuente, Lance"]
[Black "Ragger, Markus"]
[Result "1/2-1/2"]
[WhiteElo "2490"]
[BlackElo "2647"]
[Annotator "RC"]
[PlyCount "80"]
[EventDate "2022.??.??"]
[TimeControl "60"]

1. e4 {[%emt 0:00:25]} e5 {[%emt 0:00:01]} 2. Nf3 {[%emt 0:00:18]} Nc6 {
[%emt 0:00:02]} 3. Bb5 {[%emt 0:00:57]} a6 {[%emt 0:00:07]} 4. Ba4 {[%emt 0:00:
00]} Nf6 {[%emt 0:02:18]} 5. Bxc6 {[%emt 0:02:32]} dxc6 {[%emt 0:00:30]} 6. d3
{[%emt 0:00:11]} Bd6 {[%emt 0:00:23]} 7. Nbd2 {[%emt 0:00:54]} Be6 {[%emt 0:00:
00]} 8. b3 {[%emt 0:04:32]} Nd7 {[%emt 0:04:21]} 9. Nc4 {[%emt 0:06:53]} Bxc4 {
[%emt 0:20:34]} 10. dxc4 {[%emt 0:09:00]} O-O {[%emt 0:06:46]} 11. O-O {
[%emt 0:04:22]} Qe7 {[%emt 0:02:14]} 12. Qe2 {[%emt 0:01:22]} Rfd8 {[%emt 0:00:
00]} 13. g3 {[%emt 0:09:44]} b5 {[%emt 0:01:59]} 14. a4 {[%emt 0:03:39]} Rab8 {
[%emt 0:00:47]} 15. axb5 {[%emt 0:00:00]} axb5 {[%emt 0:01:59]} 16. Kg2 {
[%emt 0:00:00]} Nf8 {[%emt 0:07:59]} 17. Ra6 {[%emt 0:01:51]} Qe8 {[%emt 0:00:
00]} 18. Be3 {[%emt 0:00:56]} Ne6 {[%emt 0:05:11]} 19. Ng5 {[%emt 0:02:44]}
Nxg5 {[%emt 0:11:48]} 20. Bxg5 {[%emt 0:00:07]} Ra8 {[%emt 0:00:11]} 21. Rfa1 {
[%emt 0:00:27]} Rxa6 {[%emt 0:00:16]} 22. Rxa6 {[%emt 0:00:05]} Ra8 {[%emt 0:
00:00]} 23. Rxa8 {[%emt 0:03:28]} Qxa8 {[%emt 0:00:49]} 24. f3 {[%emt 0:00:37]}
Qa6 {[%emt 0:01:22]} 25. Be3 {[%emt 0:02:13]} bxc4 {[%emt 0:00:05]} 26. Qxc4 {
[%emt 0:05:17]} Qxc4 {[%emt 0:08:04]} 27. bxc4 {[%emt 0:00:02]} f6 {[%emt 0:00:
00]} 28. Kf2 {[%emt 0:00:22]} Kf7 {[%emt 0:00:22]} 29. Ke2 {[%emt 0:00:08]} Ke6
{[%emt 0:00:24]} 30. Kd3 {[%emt 0:06:35]} c5 {[%emt 0:06:59]} 31. Kc3 {[%emt 0:
00:00]} Kd7 {[%emt 0:00:06]} 32. Kb3 {[%emt 0:00:00]} Kc6 {[%emt 0:00:04]} 33.
Ka4 {[%emt 0:00:00]} Kb6 {[%emt 0:00:04]} 34. g4 {[%emt 0:00:00]} g5 {[%emt 0:
00:00]} 35. h3 {[%emt 0:00:00]} Be7 {[%emt 0:00:37]} 36. Bd2 {[%emt 0:00:00]}
Bd6 {[%emt 0:00:24]} 37. Bc3 {[%emt 0:01:08]} Be7 {[%emt 0:00:32]} 38. Ba5+ {
[%emt 0:00:15]} Kc6 {[%emt 0:00:34]} 39. Bc3 {[%emt 0:00:07]} Kb6 {[%emt 0:00:
00]} 40. Ba5+ {[%emt 0:00:06]} Kc6 {[%emt 0:00:04]} 1/2-1/2

[Event "44th Chess Olympiad Open 2022"]
[Site "Chennai"]
[Date "2022.08.08"]
[Round "10.23"]
[White "Horvath, Dominik"]
[Black "Ribera Veganzones, Serni"]
[Result "1-0"]
[WhiteElo "2488"]
[BlackElo "2203"]
[Annotator "RC"]
[PlyCount "123"]
[EventDate "2022.??.??"]
[TimeControl "60"]

1. e4 {[%emt 0:00:01]} c5 {[%emt 0:00:14]} 2. c3 {[%emt 0:00:07]} Nf6 {[%emt 0:
00:00]} 3. e5 {[%emt 0:00:05]} Nd5 {[%emt 0:00:17]} 4. Bc4 {[%emt 0:00:04]} Nb6
{[%emt 0:00:22]} 5. Bb3 {[%emt 0:00:04]} Nc6 {[%emt 0:00:34]} 6. d4 {[%emt 0:
00:00]} cxd4 {[%emt 0:00:53]} 7. cxd4 {[%emt 0:00:04]} d5 {[%emt 0:02:25]} 8.
Bc2 {[%emt 0:00:08]} e6 {[%emt 0:04:16]} 9. Nc3 {[%emt 0:00:06]} Bd7 {[%emt 0:
00:00]} 10. Nf3 {[%emt 0:00:19]} Be7 {[%emt 0:00:56]} 11. h4 {[%emt 0:00:13]}
h6 {[%emt 0:01:40]} 12. h5 {[%emt 0:00:40]} Rc8 {[%emt 0:04:34]} 13. Rh3 {
[%emt 0:00:21]} a6 {[%emt 0:02:32]} 14. Rg3 {[%emt 0:00:07]} Bf8 {[%emt 0:00:
00]} 15. Kf1 {[%emt 0:00:05]} Na7 {[%emt 0:01:38]} 16. Bd3 {[%emt 0:04:08]} Nc4
{[%emt 0:07:50]} 17. Ne2 {[%emt 0:00:48]} Qb6 {[%emt 0:03:33]} 18. b3 {[%emt 0:
00:00]} Na5 {[%emt 0:00:34]} 19. Be3 {[%emt 0:16:16]} Bb5 {[%emt 0:03:20]} 20.
Ne1 {[%emt 0:00:04]} Bxd3 {[%emt 0:04:31]} 21. Nxd3 {[%emt 0:00:06]} Nb5 {
[%emt 0:03:47]} 22. Nc5 {[%emt 0:03:58]} Qd8 {[%emt 0:03:48]} 23. a4 {[%emt 0:
00:00]} Na7 {[%emt 0:00:22]} 24. Nd3 {[%emt 0:20:58]} Qh4 {[%emt 0:04:48]} 25.
Ndf4 {[%emt 0:01:19]} N5c6 {[%emt 0:02:18]} 26. Rc1 {[%emt 0:00:43]} Nb4 {
[%emt 0:01:33]} 27. Bd2 {[%emt 0:01:14]} Nbc6 {[%emt 0:04:19]} 28. Rc2 {
[%emt 0:02:13]} Qh1+ {[%emt 0:02:31]} 29. Ng1 {[%emt 0:00:05]} Qh4 {[%emt 0:00:
00]} 30. Be3 {[%emt 0:03:44]} Nb4 {[%emt 0:00:43]} 31. Rxc8+ {[%emt 0:01:48]}
Nxc8 {[%emt 0:00:02]} 32. Bc1 {[%emt 0:09:51]} Nc6 {[%emt 0:00:38]} 33. Qd3 {
[%emt 0:07:20]} Qd8 {[%emt 0:03:45]} 34. Nge2 {[%emt 0:01:09]} N8e7 {[%emt 0:
00:00]} 35. Rf3 {[%emt 0:00:04]} Qb6 {[%emt 0:02:31]} 36. Ba3 {[%emt 0:00:39]}
Nb4 {[%emt 0:06:33]} 37. Qd2 {[%emt 0:04:39]} Nec6 {[%emt 0:02:01]} 38. Rg3 {
[%emt 0:00:09]} Rg8 {[%emt 0:03:29]} 39. Bxb4 {[%emt 0:07:30]} Nxb4 {[%emt 0:
00:00]} 40. Qc1 {[%emt 0:01:14]} Nc6 {[%emt 0:00:26]} 41. Qc2 {[%emt 0:30:05]}
Rh8 {[%emt 0:33:12]} 42. Rg4 {[%emt 0:02:58]} Ne7 {[%emt 0:00:00]} 43. Rg3 {
[%emt 0:00:00]} Kd7 {[%emt 0:00:00]} 44. Rf3 {[%emt 0:00:00]} Ke8 {[%emt 0:00:
00]} 45. Nd3 {[%emt 0:00:00]} Nc6 {[%emt 0:00:00]} 46. Rg3 {[%emt 0:00:00]} Rg8
{[%emt 0:00:00]} 47. Kg1 {[%emt 0:00:00]} Be7 {[%emt 0:00:00]} 48. Rg4 {
[%emt 0:00:00]} Bf8 {[%emt 0:00:00]} 49. Kh2 {[%emt 0:00:00]} Be7 {[%emt 0:00:
00]} 50. Kh1 {[%emt 0:00:00]} Bf8 {[%emt 0:00:00]} 51. Qc3 {[%emt 0:00:00]} Be7
{[%emt 0:00:00]} 52. Qc2 {[%emt 0:00:00]} Bf8 {[%emt 0:00:00]} 53. Kh2 {
[%emt 0:00:10]} Be7 {[%emt 0:00:00]} 54. Ne1 {[%emt 0:00:11]} Bf8 {[%emt 0:00:
00]} 55. Rg3 {[%emt 0:01:19]} Rh8 {[%emt 0:00:55]} 56. f4 {[%emt 0:00:36]} Kd7
{[%emt 0:01:22]} 57. Nf3 {[%emt 0:00:44]} Ne7 {[%emt 0:01:38]} 58. Nh4 {
[%emt 0:00:05]} Nc6 {[%emt 0:00:29]} 59. f5 {[%emt 0:03:03]} Nxd4 {[%emt 0:00:
00]} 60. Nxd4 {[%emt 0:00:04]} Qxd4 {[%emt 0:00:06]} 61. fxe6+ {[%emt 0:00:08]}
Kxe6 {[%emt 0:01:56]} 62. Qc8+ {[%emt 0:00:05]} 1-0

[Event "44th Chess Olympiad Open 2022"]
[Site "Chennai"]
[Date "2022.08.08"]
[Round "10.23"]
[White "Ribera Veganzones, Josep Maria"]
[Black "Blohberger, Felix"]
[Result "0-1"]
[WhiteElo "2228"]
[BlackElo "2492"]
[Annotator "RC"]
[PlyCount "104"]
[EventDate "2022.??.??"]
[TimeControl "60"]

1. e4 {[%emt 0:00:08]} c5 {[%emt 0:00:07]} 2. Nf3 {[%emt 0:00:37]} e6 {[%emt 0:
00:00]} 3. d4 {[%emt 0:01:35]} cxd4 {[%emt 0:00:07]} 4. Nxd4 {[%emt 0:00:07]}
Nf6 {[%emt 0:00:02]} 5. Nc3 {[%emt 0:00:43]} Nc6 {[%emt 0:00:05]} 6. Ndb5 {
[%emt 0:01:30]} d6 {[%emt 0:00:08]} 7. Bf4 {[%emt 0:01:15]} e5 {[%emt 0:00:06]}
8. Bg5 {[%emt 0:00:11]} a6 {[%emt 0:00:08]} 9. Na3 {[%emt 0:00:13]} b5 {
[%emt 0:00:10]} 10. Nd5 {[%emt 0:02:16]} Be7 {[%emt 0:00:05]} 11. Bxf6 {
[%emt 0:00:50]} Bxf6 {[%emt 0:00:05]} 12. c3 {[%emt 0:02:34]} Rb8 {[%emt 0:00:
00]} 13. Nc2 {[%emt 0:01:32]} Bg5 {[%emt 0:00:05]} 14. g3 {[%emt 0:01:19]} O-O
{[%emt 0:00:56]} 15. h4 {[%emt 0:00:40]} Bh6 {[%emt 0:00:04]} 16. Bg2 {[%emt 0:
00:00]} Ne7 {[%emt 0:07:58]} 17. Ncb4 {[%emt 0:02:54]} Bb7 {[%emt 0:03:36]} 18.
O-O {[%emt 0:01:10]} a5 {[%emt 0:02:20]} 19. Nxe7+ {[%emt 0:01:47]} Qxe7 {
[%emt 0:00:10]} 20. Nd5 {[%emt 0:00:09]} Qe6 {[%emt 0:00:15]} 21. a4 {[%emt 0:
00:00]} Bxd5 {[%emt 0:04:35]} 22. exd5 {[%emt 0:01:18]} Qd7 {[%emt 0:00:32]}
23. axb5 {[%emt 0:01:00]} Rxb5 {[%emt 0:00:50]} 24. Qa4 {[%emt 0:05:25]} Qb7 {
[%emt 0:00:47]} 25. Rfb1 {[%emt 0:05:04]} Rxb2 {[%emt 0:09:00]} 26. Rxb2 {
[%emt 0:01:17]} Qxb2 {[%emt 0:00:07]} 27. Qa3 {[%emt 0:13:44]} Qxa3 {[%emt 0:
00:00]} 28. Rxa3 {[%emt 0:00:09]} Ra8 {[%emt 0:00:04]} 29. Bh3 {[%emt 0:04:51]}
Bc1 {[%emt 0:00:42]} 30. Ra4 {[%emt 0:01:01]} Bb2 {[%emt 0:00:34]} 31. c4 {
[%emt 0:00:48]} Bd4 {[%emt 0:01:45]} 32. Bd7 {[%emt 0:02:13]} h5 {[%emt 0:00:
00]} 33. Kf1 {[%emt 0:00:33]} g6 {[%emt 0:00:13]} 34. Ke2 {[%emt 0:02:19]} f5 {
[%emt 0:00:09]} 35. f3 {[%emt 0:02:29]} Ra7 {[%emt 0:02:00]} 36. Be8 {[%emt 0:
00:00]} Kg7 {[%emt 0:00:33]} 37. Ra2 {[%emt 0:00:11]} e4 {[%emt 0:02:29]} 38.
f4 {[%emt 0:00:43]} Bc5 {[%emt 0:03:27]} 39. Bb5 {[%emt 0:01:23]} Kf8 {[%emt 0:
00:00]} 40. Ra1 {[%emt 0:00:57]} Ke7 {[%emt 0:00:14]} 41. Ra2 {[%emt 0:30:21]}
Kd8 {[%emt 0:30:22]} 42. Ra1 {[%emt 0:01:09]} Bb4 {[%emt 0:00:10]} 43. Ra2 {
[%emt 0:00:40]} Re7 {[%emt 0:00:19]} 44. Ke3 {[%emt 0:01:20]} Kc7 {[%emt 0:00:
00]} 45. Ra1 {[%emt 0:01:06]} Kb6 {[%emt 0:00:34]} 46. Rb1 {[%emt 0:01:25]} Kc5
{[%emt 0:00:31]} 47. Ra1 {[%emt 0:00:51]} Rb7 {[%emt 0:02:09]} 48. Rc1 {
[%emt 0:04:30]} Rb8 {[%emt 0:01:24]} 49. Ra1 {[%emt 0:02:28]} Bc3 {[%emt 0:00:
00]} 50. Ra4 {[%emt 0:09:53]} Rxb5 {[%emt 0:01:14]} 51. cxb5 {[%emt 0:03:07]}
Kxb5 {[%emt 0:00:12]} 52. Ra2 {[%emt 0:01:59]} a4 {[%emt 0:00:26]} 0-1

[Event "44th Chess Olympiad Open 2022"]
[Site "Chennai"]
[Date "2022.08.08"]
[Round "10.24"]
[White "Bogner, Sebastian"]
[Black "O`Gorman, Tom"]
[Result "*"]
[WhiteElo "2545"]
[BlackElo "2401"]
[Annotator "RC"]
[PlyCount "95"]
[EventDate "2022.??.??"]
[TimeControl "60"]

1. d4 {[%emt 0:00:03]} Nf6 {[%emt 0:00:09]} 2. c4 {[%emt 0:00:07]} g6 {[%emt 0:
00:00]} 3. Nc3 {[%emt 0:00:04]} d5 {[%emt 0:00:09]} 4. cxd5 {[%emt 0:00:05]}
Nxd5 {[%emt 0:00:08]} 5. e4 {[%emt 0:00:03]} Nxc3 {[%emt 0:00:11]} 6. bxc3 {
[%emt 0:00:05]} Bg7 {[%emt 0:00:06]} 7. Qa4+ {[%emt 0:00:17]} Qd7 {[%emt 0:00:
00]} 8. Qa3 {[%emt 0:00:35]} b6 {[%emt 0:00:07]} 9. Nf3 {[%emt 0:01:23]} c5 {
[%emt 0:00:09]} 10. Bb2 {[%emt 0:13:54]} O-O {[%emt 0:02:20]} 11. Bd3 {[%emt 0:
00:00]} Nc6 {[%emt 0:12:45]} 12. d5 {[%emt 0:16:05]} e6 {[%emt 0:03:17]} 13. c4
{[%emt 0:01:05]} Bxb2 {[%emt 0:04:06]} 14. Qxb2 {[%emt 0:00:03]} exd5 {[%emt 0:
00:00]} 15. exd5 {[%emt 0:13:07]} Qe8+ {[%emt 0:06:43]} 16. Be2 {[%emt 0:04:34]
} Na5 {[%emt 0:00:29]} 17. O-O {[%emt 0:01:01]} Bg4 {[%emt 0:00:21]} 18. Rfe1 {
[%emt 0:02:21]} Bxf3 {[%emt 0:02:04]} 19. Bxf3 {[%emt 0:00:09]} Qd7 {[%emt 0:
00:00]} 20. Qc3 {[%emt 0:12:53]} Rfe8 {[%emt 0:05:06]} 21. h4 {[%emt 0:02:58]}
h5 {[%emt 0:06:41]} 22. d6 {[%emt 0:03:34]} Rad8 {[%emt 0:09:19]} 23. Qf6 {
[%emt 0:00:45]} Qf5 {[%emt 0:02:39]} 24. Rxe8+ {[%emt 0:12:00]} Rxe8 {[%emt 0:
00:00]} 25. d7 {[%emt 0:00:10]} Qxd7 {[%emt 0:02:36]} 26. Bd5 {[%emt 0:00:03]}
Kf8 {[%emt 0:01:35]} 27. Qh8+ {[%emt 0:01:07]} Ke7 {[%emt 0:00:07]} 28. Re1+ {
[%emt 0:00:02]} Kd8 {[%emt 0:00:08]} 29. Qf6+ {[%emt 0:00:06]} Kc7 {[%emt 0:00:
00]} 30. Qf4+ {[%emt 0:03:52]} Kc8 {[%emt 0:00:01]} 31. Rxe8+ {[%emt 0:00:50]}
Qxe8 {[%emt 0:00:05]} 32. Bxf7 {[%emt 0:00:05]} Qe2 {[%emt 0:07:31]} 33. Bd5 {
[%emt 0:04:03]} Qe7 {[%emt 0:04:24]} 34. g3 {[%emt 0:00:59]} Nb7 {[%emt 0:00:
00]} 35. Bf7 {[%emt 0:02:42]} Qd6 {[%emt 0:01:21]} 36. Qe4 {[%emt 0:01:23]}
Qd1+ {[%emt 0:03:12]} 37. Kg2 {[%emt 0:00:19]} Nd6 {[%emt 0:00:06]} 38. Qc6+ {
[%emt 0:03:08]} Kd8 {[%emt 0:01:06]} 39. Bd5 {[%emt 0:00:25]} Nf5 {[%emt 0:00:
00]} 40. Qa8+ {[%emt 0:00:54]} Ke7 {[%emt 0:01:31]} 41. Qxa7+ {[%emt 0:30:10]}
Kf6 {[%emt 0:00:05]} 42. Qxb6+ {[%emt 0:00:00]} Kg7 {[%emt 0:00:25]} 43. Qc7+ {
[%emt 0:00:00]} Kh6 {[%emt 0:00:00]} 44. Qf4+ {[%emt 0:00:00]} Kg7 {[%emt 0:00:
00]} 45. Be4 {[%emt 0:00:00]} Qd4 {[%emt 0:00:00]} 46. Bxf5 {[%emt 0:00:00]}
Qxf4 {[%emt 0:00:00]} 47. gxf4 {[%emt 0:00:00]} gxf5 {[%emt 0:00:00]} 48. a4 {
[%emt 0:00:00]} *

[Event "44th Chess Olympiad Open 2022"]
[Site "Chennai"]
[Date "2022.08.08"]
[Round "10.24"]
[White "Baenziger, Fabian"]
[Black "Heidenfeld, Mark"]
[Result "1-0"]
[WhiteElo "2451"]
[BlackElo "2355"]
[Annotator "RC"]
[PlyCount "67"]
[EventDate "2022.??.??"]
[TimeControl "60"]

1. d4 {[%emt 0:00:04]} Nf6 {[%emt 0:00:31]} 2. c4 {[%emt 0:00:09]} e6 {[%emt 0:
00:00]} 3. Nf3 {[%emt 0:00:16]} d5 {[%emt 0:00:45]} 4. g3 {[%emt 0:00:35]} Bb4+
{[%emt 0:01:23]} 5. Bd2 {[%emt 0:00:16]} Bd6 {[%emt 0:01:07]} 6. Bg2 {[%emt 0:
00:00]} c6 {[%emt 0:00:46]} 7. Nc3 {[%emt 0:02:07]} Nbd7 {[%emt 0:02:03]} 8. b3
{[%emt 0:00:43]} O-O {[%emt 0:07:08]} 9. O-O {[%emt 0:01:29]} b6 {[%emt 0:00:
00]} 10. e4 {[%emt 0:07:51]} dxe4 {[%emt 0:04:19]} 11. Ng5 {[%emt 0:00:09]} Bb7
{[%emt 0:00:35]} 12. Ngxe4 {[%emt 0:03:55]} Be7 {[%emt 0:04:37]} 13. Qc2 {
[%emt 0:05:07]} Nxe4 {[%emt 0:03:25]} 14. Nxe4 {[%emt 0:00:23]} c5 {[%emt 0:00:
00]} 15. dxc5 {[%emt 0:03:33]} bxc5 {[%emt 0:00:46]} 16. Rad1 {[%emt 0:05:05]}
Qc8 {[%emt 0:01:19]} 17. Be3 {[%emt 0:08:49]} Nf6 {[%emt 0:10:49]} 18. Nd6 {
[%emt 0:07:47]} Bxd6 {[%emt 0:00:07]} 19. Bxb7 {[%emt 0:00:40]} Qxb7 {[%emt 0:
00:00]} 20. Rxd6 {[%emt 0:00:04]} Rfc8 {[%emt 0:08:12]} 21. Rfd1 {[%emt 0:00:
00]} h6 {[%emt 0:02:41]} 22. Bf4 {[%emt 0:07:19]} a5 {[%emt 0:04:06]} 23. a4 {
[%emt 0:03:15]} Rab8 {[%emt 0:10:44]} 24. R1d3 {[%emt 0:04:30]} Qe4 {[%emt 0:
00:00]} 25. f3 {[%emt 0:04:06]} Qa8 {[%emt 0:01:56]} 26. Qd2 {[%emt 0:02:19]}
Qa7 {[%emt 0:06:46]} 27. Be5 {[%emt 0:01:01]} Kh7 {[%emt 0:00:21]} 28. Qc2 {
[%emt 0:09:27]} Kg8 {[%emt 0:00:16]} 29. Qc3 {[%emt 0:00:05]} Qe7 {[%emt 0:00:
00]} 30. Qxa5 {[%emt 0:00:10]} Rb4 {[%emt 0:00:50]} 31. Rd8+ {[%emt 0:02:26]}
Rxd8 {[%emt 0:00:04]} 32. Qxd8+ {[%emt 0:00:04]} Qxd8 {[%emt 0:00:06]} 33.
Rxd8+ {[%emt 0:00:05]} Kh7 {[%emt 0:00:04]} 34. Rb8 {[%emt 0:00:36]} 1-0

[Event "44th Chess Olympiad Open 2022"]
[Site "Chennai"]
[Date "2022.08.08"]
[Round "10.24"]
[White "Murphy, Conor E"]
[Black "Georgiadis, Nico"]
[Result "0-1"]
[WhiteElo "2404"]
[BlackElo "2578"]
[Annotator "RC"]
[PlyCount "70"]
[EventDate "2022.??.??"]
[TimeControl "60"]

1. e4 {[%emt 0:00:03]} c5 {[%emt 0:00:05]} 2. Nf3 {[%emt 0:00:13]} d6 {[%emt 0:
00:00]} 3. d4 {[%emt 0:00:17]} cxd4 {[%emt 0:00:09]} 4. Qxd4 {[%emt 0:00:06]}
Nc6 {[%emt 0:00:25]} 5. Bb5 {[%emt 0:00:07]} a6 {[%emt 0:00:37]} 6. Bxc6+ {
[%emt 0:00:12]} bxc6 {[%emt 0:00:04]} 7. O-O {[%emt 0:00:16]} e5 {[%emt 0:00:
00]} 8. Qa4 {[%emt 0:00:30]} Qc7 9. c4 {[%emt 0:00:30]} Nf6 {[%emt 0:01:00]}
10. Nc3 {[%emt 0:00:00]} Bg4 {[%emt 0:12:51]} 11. Nh4 {[%emt 0:00:12]} Nd7 {
[%emt 0:06:18]} 12. Be3 {[%emt 0:08:31]} Be7 {[%emt 0:12:16]} 13. Nf5 {[%emt 0:
00:00]} Bxf5 {[%emt 0:00:06]} 14. exf5 {[%emt 0:00:05]} O-O {[%emt 0:00:51]}
15. Rad1 {[%emt 0:09:26]} Rfd8 {[%emt 0:05:38]} 16. Rd3 {[%emt 0:08:16]} h6 {
[%emt 0:08:40]} 17. Ne4 {[%emt 0:11:41]} Nf6 {[%emt 0:07:52]} 18. Nxf6+ {
[%emt 0:01:05]} Bxf6 {[%emt 0:00:05]} 19. Rb3 {[%emt 0:16:04]} Rab8 {[%emt 0:
00:00]} 20. Rxb8 {[%emt 0:05:18]} Rxb8 {[%emt 0:00:07]} 21. Qxa6 {[%emt 0:00:
00]} Rxb2 {[%emt 0:04:03]} 22. a4 {[%emt 0:00:34]} d5 {[%emt 0:11:52]} 23. cxd5
{[%emt 0:18:34]} cxd5 {[%emt 0:00:05]} 24. Rc1 {[%emt 0:02:11]} Rc2 {[%emt 0:
00:00]} 25. Qf1 {[%emt 0:01:18]} d4 {[%emt 0:00:44]} 26. Qd1 {[%emt 0:02:23]}
Rxc1 {[%emt 0:02:53]} 27. Bxc1 {[%emt 0:00:47]} e4 {[%emt 0:00:44]} 28. Bd2 {
[%emt 0:02:56]} d3 {[%emt 0:01:21]} 29. a5 {[%emt 0:07:59]} Bg5 {[%emt 0:08:00]
} 30. Bxg5 {[%emt 0:02:57]} hxg5 {[%emt 0:00:04]} 31. a6 {[%emt 0:00:09]} Qc2 {
[%emt 0:01:05]} 32. Qf1 {[%emt 0:00:30]} d2 {[%emt 0:00:27]} 33. a7 {[%emt 0:
00:00]} Qa4 {[%emt 0:00:14]} 34. g3 {[%emt 0:02:15]} Qxa7 {[%emt 0:00:16]} 35.
Qd1 {[%emt 0:00:02]} Qd4 {[%emt 0:00:22]} 0-1

[Event "44th Chess Olympiad Open 2022"]
[Site "Chennai"]
[Date "2022.08.08"]
[Round "10.24"]
[White "Kanyamarala, Tarun"]
[Black "Kurmann, Oliver"]
[Result "1/2-1/2"]
[WhiteElo "2379"]
[BlackElo "2463"]
[Annotator "RC"]
[PlyCount "122"]
[EventDate "2022.??.??"]
[TimeControl "60"]

1. d4 {[%emt 0:00:03]} Nf6 {[%emt 0:00:08]} 2. Nf3 {[%emt 0:00:09]} e6 {
[%emt 0:00:11]} 3. Bf4 {[%emt 0:00:11]} d5 {[%emt 0:00:30]} 4. e3 {[%emt 0:00:
00]} Bd6 {[%emt 0:00:17]} 5. c3 {[%emt 0:04:05]} O-O {[%emt 0:00:24]} 6. Nbd2 {
[%emt 0:02:16]} b6 {[%emt 0:02:37]} 7. Ne5 {[%emt 0:01:43]} c5 {[%emt 0:01:33]}
8. Qf3 {[%emt 0:19:10]} Ba6 {[%emt 0:15:55]} 9. Bxa6 {[%emt 0:04:22]} Nxa6 {
[%emt 0:00:02]} 10. Bg5 {[%emt 0:01:15]} Rc8 {[%emt 0:22:59]} 11. O-O {[%emt 0:
00:00]} Be7 {[%emt 0:00:18]} 12. Qe2 {[%emt 0:06:40]} Nb8 {[%emt 0:01:37]} 13.
dxc5 {[%emt 0:02:47]} bxc5 {[%emt 0:13:17]} 14. e4 {[%emt 0:00:24]} Nc6 {
[%emt 0:06:14]} 15. Nxc6 {[%emt 0:07:00]} Rxc6 {[%emt 0:00:03]} 16. Rfe1 {
[%emt 0:01:12]} Nxe4 {[%emt 0:05:44]} 17. Bxe7 {[%emt 0:00:42]} Qxe7 {[%emt 0:
00:00]} 18. Nxe4 {[%emt 0:00:24]} dxe4 {[%emt 0:00:06]} 19. Qxe4 {[%emt 0:00:
00]} Rd6 {[%emt 0:00:08]} 20. Rad1 {[%emt 0:03:11]} Rfd8 {[%emt 0:00:10]} 21.
Rxd6 {[%emt 0:00:30]} Qxd6 {[%emt 0:00:02]} 22. g3 {[%emt 0:03:01]} g6 {
[%emt 0:07:29]} 23. Qe5 {[%emt 0:12:50]} Qd2 {[%emt 0:10:14]} 24. Re2 {[%emt 0:
00:00]} Qd1+ {[%emt 0:00:01]} 25. Kg2 {[%emt 0:00:27]} Rd5 {[%emt 0:01:42]} 26.
Qe3 {[%emt 0:01:36]} h5 {[%emt 0:00:29]} 27. h4 {[%emt 0:00:52]} Qb1 {[%emt 0:
00:00]} 28. b3 {[%emt 0:02:04]} Qd1 {[%emt 0:01:06]} 29. Qf3 {[%emt 0:01:42]}
a5 {[%emt 0:02:21]} 30. c4 {[%emt 0:01:04]} Rd2 {[%emt 0:04:37]} 31. Re5 {
[%emt 0:02:05]} Qxf3+ {[%emt 0:01:05]} 32. Kxf3 {[%emt 0:00:02]} Rxa2 {[%emt 0:
00:00]} 33. Rxc5 {[%emt 0:00:07]} Ra3 {[%emt 0:01:19]} 34. Ke4 {[%emt 0:00:13]}
Rxb3 {[%emt 0:00:07]} 35. Rxa5 {[%emt 0:00:09]} Rb2 {[%emt 0:01:32]} 36. f3 {
[%emt 0:05:54]} Re2+ {[%emt 0:00:37]} 37. Kd4 {[%emt 0:00:08]} Rd2+ {[%emt 0:
00:00]} 38. Ke5 {[%emt 0:00:21]} Rd3 {[%emt 0:00:19]} 39. Ke4 {[%emt 0:00:42]}
Rd1 {[%emt 0:00:52]} 40. Ra8+ {[%emt 0:01:05]} Kg7 {[%emt 0:00:02]} 41. Ra3 {
[%emt 0:09:00]} Kf6 {[%emt 0:01:46]} 42. Rd3 {[%emt 0:10:33]} Rc1 {[%emt 0:00:
00]} 43. Kd4 {[%emt 0:00:08]} g5 {[%emt 0:00:08]} 44. hxg5+ {[%emt 0:05:29]}
Kxg5 {[%emt 0:04:11]} 45. c5 {[%emt 0:00:37]} e5+ {[%emt 0:02:30]} 46. Kd5 {
[%emt 0:00:08]} f5 {[%emt 0:00:08]} 47. Re3 {[%emt 0:00:46]} h4 {[%emt 0:09:34]
} 48. gxh4+ {[%emt 0:03:17]} Kxh4 {[%emt 0:00:01]} 49. Rxe5 {[%emt 0:01:20]} f4
{[%emt 0:00:02]} 50. c6 {[%emt 0:02:32]} Kg3 {[%emt 0:00:02]} 51. Kd6 {[%emt 0:
00:00]} Kxf3 {[%emt 0:00:16]} 52. c7 {[%emt 0:01:04]} Rxc7 {[%emt 0:05:37]} 53.
Kxc7 {[%emt 0:00:01]} Kg2 {[%emt 0:00:13]} 54. Rg5+ {[%emt 0:00:09]} Kh2 {
[%emt 0:00:07]} 55. Rf5 {[%emt 0:00:53]} Kg3 {[%emt 0:00:02]} 56. Kd6 {[%emt 0:
00:00]} f3 {[%emt 0:00:09]} 57. Ke5 {[%emt 0:00:11]} f2 {[%emt 0:00:06]} 58.
Ke4 {[%emt 0:00:10]} Kg2 {[%emt 0:00:08]} 59. Rg5+ {[%emt 0:00:25]} Kh2 {
[%emt 0:00:19]} 60. Rf5 {[%emt 0:00:13]} Kg2 {[%emt 0:00:10]} 61. Rxf2+ {
[%emt 0:00:12]} Kxf2 {[%emt 0:00:04]} 1/2-1/2